[Event "Challengers Triathlon (GM2)"]
[Site "Biel, CH"]
[Date "2025.07.13"]
[Round "1"]
[White "Navara, David"]
[Black "Dardha, Daniel"]
[Result "1/2-1/2"]
[Board "1"]
[TimeControl "900+5"]
[WhiteFideId "309095"]
[BlackFideId "240990"]
[WhiteTitle "GM"]
[BlackTitle "GM"]
[WhiteElo "2621"]
[BlackElo "2580"]
[WhiteTeam "CZE"]
[BlackTeam "BEL"]
[WhiteClock "0:00:22"]
[BlackClock "0:00:45"]
[Variant "Standard"]

1. e4 {[%clk 0:15:09]}  d6 {[%clk 0:15:06]} 2. d4 {[%clk 0:15:12]}  Nf6 {[%clk 0:15:09]} 3. Nc3 {[%clk 0:15:15]}  e5 {[%clk 0:15:12]} 4. Nf3 {[%clk 0:15:16]}  Nbd7 {[%clk 0:15:15]} 5. Bc4 {[%clk 0:15:15]}  Be7 {[%clk 0:15:18]} 6. a4 {[%clk 0:15:15]}  O-O {[%clk 0:15:19]} 7. O-O {[%clk 0:15:18]}  a5 {[%clk 0:15:19]} 8. Re1 {[%clk 0:14:52]}  c6 {[%clk 0:15:09]} 9. b3 {[%clk 0:14:23]}  h6 {[%clk 0:15:01]} 10. h3 {[%clk 0:14:12]}  Re8 {[%clk 0:14:55]} 11. Bb2 {[%clk 0:13:20]}  exd4 {[%clk 0:14:18]} 12. Nxd4 {[%clk 0:13:21]}  Bf8 {[%clk 0:14:09]} 13. Qd2 {[%clk 0:12:25]}  Nc5 {[%clk 0:13:05]} 14. Qf4 {[%clk 0:12:22]}  Ne6 {[%clk 0:12:00]} 15. Nxe6 {[%clk 0:12:05]}  Bxe6 {[%clk 0:12:03]} 16. Bxe6 {[%clk 0:11:23]}  Rxe6 {[%clk 0:12:06]} 17. Re3 {[%clk 0:10:40]}  Qb6 {[%clk 0:11:44]} 18. Ne2 {[%clk 0:09:18]}  Rae8 {[%clk 0:11:19]} 19. Ng3 {[%clk 0:09:11]}  Qc5 {[%clk 0:10:05]} 20. c4 {[%clk 0:08:51]}  Qg5 {[%clk 0:07:38]} 21. Qf3 {[%clk 0:05:53]}  g6 {[%clk 0:06:51]} 22. Rae1 {[%clk 0:05:57]}  h5 {[%clk 0:05:36]} 23. Nf1 {[%clk 0:02:36]}  Bg7 {[%clk 0:05:14]} 24. Nd2 {[%clk 0:02:09]}  Ng4 {[%clk 0:04:38]} 25. Bxg7 {[%clk 0:02:12]}  Nxe3 {[%clk 0:04:31]} 26. Bc3 {[%clk 0:01:50]}  Nf5 {[%clk 0:04:05]} 27. Qd3 {[%clk 0:01:40]}  Ng7 {[%clk 0:02:31]} 28. Nf3 {[%clk 0:01:16]}  Qe7 {[%clk 0:02:34]} 29. Qd2 {[%clk 0:00:59]}  f6 {[%clk 0:02:08]} 30. Qh6 {[%clk 0:00:14]}  Qf7 {[%clk 0:02:12]} 31. Nh4 {[%clk 0:00:17]}  Rxe4 {[%clk 0:00:41]} 32. Rxe4 {[%clk 0:00:21]}  Rxe4 {[%clk 0:00:45]} 33. Nxg6 {[%clk 0:00:25]}  Qe6 {[%clk 0:00:48]} 34. g3 {[%clk 0:00:12]}  Qxh3 {[%clk 0:00:34]} 35. Nf4 {[%clk 0:00:11]}  Rxf4 {[%clk 0:00:09]} 36. Qxf4 {[%clk 0:00:15]}  Qe6 {[%clk 0:00:11]} 37. Bxf6 {[%clk 0:00:14]}  Nf5 {[%clk 0:00:11]} 38. Qg5+ {[%clk 0:00:11]}  Kf7 {[%clk 0:00:15]} 39. Bc3 {[%clk 0:00:15]}  Qg6 {[%clk 0:00:18]} 40. Qf4 {[%clk 0:00:08]}  b6 {[%clk 0:00:07]} 41. Qf3 {[%clk 0:00:12]}  Kg8 {[%clk 0:00:07]} 42. Qxc6 {[%clk 0:00:13]}  Nxg3 {[%clk 0:00:08]} 43. fxg3 {[%clk 0:00:09]}  Qb1+ {[%clk 0:00:09]} 44. Kh2 {[%clk 0:00:13]}  Qc2+ {[%clk 0:00:13]} 45. Kh3 {[%clk 0:00:17]}  Qxc3 {[%clk 0:00:17]} 46. Qxb6 {[%clk 0:00:08]}  Qf3 {[%clk 0:00:16]} 47. Qd8+ {[%clk 0:00:07]}  Kf7 {[%clk 0:00:15]} 48. Qd7+ {[%clk 0:00:11]}  Kg8 {[%clk 0:00:19]} 49. Qe6+ {[%clk 0:00:11]}  Kg7 {[%clk 0:00:22]} 50. Kh4 {[%clk 0:00:10]}  Qh1+ {[%clk 0:00:07]} 51. Kg5 {[%clk 0:00:11]}  Qc1+ {[%clk 0:00:11]} 52. Kxh5 {[%clk 0:00:12]}  Qh1+ {[%clk 0:00:10]} 53. Kg5 {[%clk 0:00:13]}  Qc1+ {[%clk 0:00:13]} 54. Kh4 {[%clk 0:00:16]}  Qh1+ {[%clk 0:00:11]} 55. Qh3 {[%clk 0:00:20]}  Qb1 {[%clk 0:00:07]} 56. Qd7+ {[%clk 0:00:20]}  Kg8 {[%clk 0:00:10]} 57. Qb7 {[%clk 0:00:13]}  Qb2 {[%clk 0:00:09]} 58. Kg4 {[%clk 0:00:10]}  Qd4+ {[%clk 0:00:11]} 59. Kh3 {[%clk 0:00:11]}  Qh8+ {[%clk 0:00:15]} 60. Kg2 {[%clk 0:00:10]}  Qb2+ {[%clk 0:00:19]} 61. Kf3 {[%clk 0:00:14]}  Qc3+ {[%clk 0:00:20]} 62. Kf4 {[%clk 0:00:09]}  Qe5+ {[%clk 0:00:19]} 63. Kg4 {[%clk 0:00:13]}  Qd4+ {[%clk 0:00:22]} 64. Kh3 {[%clk 0:00:08]}  Qh8+ {[%clk 0:00:26]} 65. Kg2 {[%clk 0:00:12]}  Qb2+ {[%clk 0:00:30]} 66. Kf3 {[%clk 0:00:09]}  Qc3+ {[%clk 0:00:33]} 67. Ke4 {[%clk 0:00:10]}  Qe5+ {[%clk 0:00:33]} 68. Kd3 {[%clk 0:00:14]}  Qxg3+ {[%clk 0:00:37]} 69. Kc2 {[%clk 0:00:17]}  Qf2+ {[%clk 0:00:38]} 70. Kb1 {[%clk 0:00:16]}  Qe1+ {[%clk 0:00:41]} 71. Ka2 {[%clk 0:00:18]}  Qd2+ {[%clk 0:00:45]} 72. Ka3 {[%clk 0:00:22]} 1/2-1/2

[Event "Challengers Triathlon (GM2)"]
[Site "Biel, CH"]
[Date "2025.07.13"]
[Round "1"]
[White "Ma, Qun"]
[Black "Hakobyan, Aram"]
[Result "1/2-1/2"]
[Board "2"]
[TimeControl "900+5"]
[WhiteFideId "8603154"]
[BlackFideId "13306677"]
[WhiteTitle "GM"]
[BlackTitle "GM"]
[WhiteElo "2617"]
[BlackElo "2535"]
[WhiteTeam "CHN"]
[BlackTeam "ARM"]
[WhiteClock "0:00:26"]
[BlackClock "0:00:27"]
[Variant "Standard"]

1. e4 {[%clk 0:15:07]}  e5 {[%clk 0:15:09]} 2. Nf3 {[%clk 0:15:10]}  Nc6 {[%clk 0:15:13]} 3. Bb5 {[%clk 0:15:13]}  a6 {[%clk 0:15:16]} 4. Ba4 {[%clk 0:15:17]}  Nf6 {[%clk 0:15:19]} 5. O-O {[%clk 0:15:20]}  Nxe4 {[%clk 0:15:21]} 6. d4 {[%clk 0:15:19]}  b5 {[%clk 0:15:23]} 7. Bb3 {[%clk 0:15:23]}  d5 {[%clk 0:15:26]} 8. dxe5 {[%clk 0:15:22]}  Be6 {[%clk 0:15:28]} 9. Nbd2 {[%clk 0:15:15]}  Be7 {[%clk 0:15:21]} 10. c3 {[%clk 0:15:17]}  O-O {[%clk 0:15:19]} 11. Bc2 {[%clk 0:14:49]}  Bf5 {[%clk 0:15:21]} 12. Nd4 {[%clk 0:12:10]}  Nxd4 {[%clk 0:15:19]} 13. cxd4 {[%clk 0:12:13]}  f6 {[%clk 0:15:17]} 14. Nxe4 {[%clk 0:11:07]}  Bxe4 {[%clk 0:15:15]} 15. Bf4 {[%clk 0:10:08]}  fxe5 {[%clk 0:10:46]} 16. Bxe5 {[%clk 0:10:10]}  Bd6 {[%clk 0:08:51]} 17. Bb3 {[%clk 0:08:03]}  c6 {[%clk 0:05:46]} 18. Bxd6 {[%clk 0:07:14]}  Qxd6 {[%clk 0:05:49]} 19. f3 {[%clk 0:07:11]}  Bg6 {[%clk 0:05:39]} 20. Qd2 {[%clk 0:06:40]}  h6 {[%clk 0:04:17]} 21. Rfe1 {[%clk 0:05:28]}  Rfe8 {[%clk 0:04:20]} 22. a3 {[%clk 0:05:24]}  Kh7 {[%clk 0:04:22]} 23. Rac1 {[%clk 0:04:48]}  Rxe1+ {[%clk 0:03:22]} 24. Rxe1 {[%clk 0:04:50]}  c5 {[%clk 0:03:07]} 25. Re5 {[%clk 0:03:02]}  c4 {[%clk 0:03:11]} 26. Bc2 {[%clk 0:03:06]}  a5 {[%clk 0:02:44]} 27. f4 {[%clk 0:01:28]}  Bxc2 {[%clk 0:02:23]} 28. Qxc2+ {[%clk 0:01:32]}  Kh8 {[%clk 0:02:27]} 29. Qf5 {[%clk 0:01:33]}  Rf8 {[%clk 0:00:41]} 30. Rxd5 {[%clk 0:01:14]}  Rxf5 {[%clk 0:00:43]} 31. Rxd6 {[%clk 0:01:18]}  Rxf4 {[%clk 0:00:46]} 32. Rd5 {[%clk 0:00:51]}  b4 {[%clk 0:00:42]} 33. Rxa5 {[%clk 0:00:25]}  bxa3 {[%clk 0:00:23]} 34. Rxa3 {[%clk 0:00:18]}  Rxd4 {[%clk 0:00:26]} 35. Rc3 {[%clk 0:00:21]}  Kh7 {[%clk 0:00:21]} 36. Kf2 {[%clk 0:00:21]}  Rd2+ {[%clk 0:00:24]} 37. Kf3 {[%clk 0:00:22]}  Rxb2 {[%clk 0:00:27]} 38. Rxc4 {[%clk 0:00:26]} 1/2-1/2

[Event "Challengers Triathlon (GM2)"]
[Site "Biel, CH"]
[Date "2025.07.13"]
[Round "1"]
[White "Theodorou, Nikolas"]
[Black "Jumabayev, Rinat"]
[Result "1-0"]
[Board "3"]
[TimeControl "900+5"]
[WhiteFideId "4262875"]
[BlackFideId "13702661"]
[WhiteTitle "GM"]
[BlackTitle "GM"]
[WhiteElo "2559"]
[BlackElo "2546"]
[WhiteTeam "GRE"]
[BlackTeam "KAZ"]
[WhiteClock "0:04:33"]
[BlackClock "0:00:11"]
[Variant "Standard"]

1. d4 {[%clk 0:15:07]}  Nf6 {[%clk 0:15:04]} 2. Nf3 {[%clk 0:15:08]}  d5 {[%clk 0:14:56]} 3. c4 {[%clk 0:15:11]}  e6 {[%clk 0:14:59]} 4. g3 {[%clk 0:15:15]}  Bd6 {[%clk 0:15:01]} 5. Bg2 {[%clk 0:15:15]}  O-O {[%clk 0:15:04]} 6. O-O {[%clk 0:14:49]}  Nc6 {[%clk 0:15:07]} 7. Nbd2 {[%clk 0:14:15]}  a5 {[%clk 0:14:46]} 8. a3 {[%clk 0:04:57]}  a4 {[%clk 0:05:15]} 9. Qc2 {[%clk 0:14:07]}  Be7 {[%clk 0:05:19]} 10. Rd1 {[%clk 0:12:49]}  dxc4 {[%clk 0:05:23]} 11. Nxc4 {[%clk 0:12:44]}  Na5 {[%clk 0:05:27]} 12. Nxa5 {[%clk 0:12:04]}  Rxa5 {[%clk 0:05:30]} 13. Ne5 {[%clk 0:12:07]}  Ra6 {[%clk 0:04:33]} 14. Bg5 {[%clk 0:11:02]}  h6 {[%clk 0:04:34]} 15. Bxf6 {[%clk 0:11:05]}  Bxf6 {[%clk 0:04:37]} 16. Rac1 {[%clk 0:11:08]}  c6 {[%clk 0:04:38]} 17. Nd3 {[%clk 0:10:40]}  Qa5 {[%clk 0:03:57]} 18. Nc5 {[%clk 0:10:16]}  Ra7 {[%clk 0:04:00]} 19. h4 {[%clk 0:10:20]}  Rd8 {[%clk 0:04:03]} 20. e3 {[%clk 0:10:04]}  Be7 {[%clk 0:04:02]} 21. Bf3 {[%clk 0:09:27]}  Bd7 {[%clk 0:03:53]} 22. Qe2 {[%clk 0:08:21]}  Be8 {[%clk 0:02:16]} 23. Be4 {[%clk 0:07:21]}  b6 {[%clk 0:01:48]} 24. Nd3 {[%clk 0:07:17]}  c5 {[%clk 0:01:42]} 25. Ne5 {[%clk 0:06:54]}  cxd4 {[%clk 0:01:00]} 26. exd4 {[%clk 0:06:56]}  Bf6 {[%clk 0:00:25]} 27. h5 {[%clk 0:05:38]}  Bxe5 {[%clk 0:00:20]} 28. dxe5 {[%clk 0:05:40]}  Rad7 {[%clk 0:00:08]} 29. Rxd7 {[%clk 0:05:10]}  Bxd7 {[%clk 0:00:12]} 30. Qd3 {[%clk 0:04:51]}  Qxe5 {[%clk 0:00:11]} 31. Qxd7 {[%clk 0:04:33]} 1-0

[Event "Challengers Triathlon (GM2)"]
[Site "Biel, CH"]
[Date "2025.07.13"]
[Round "2"]
[White "Theodorou, Nikolas"]
[Black "Navara, David"]
[Result "1-0"]
[Board "1"]
[TimeControl "900+5"]
[WhiteFideId "4262875"]
[BlackFideId "309095"]
[WhiteTitle "GM"]
[BlackTitle "GM"]
[WhiteElo "2559"]
[BlackElo "2621"]
[WhiteTeam "GRE"]
[BlackTeam "CZE"]
[WhiteClock "0:06:33"]
[BlackClock "0:09:41"]
[Variant "Standard"]

1. d4 {[%clk 0:15:08]}  Nf6 {[%clk 0:15:08]} 2. Nf3 {[%clk 0:15:10]}  d5 {[%clk 0:15:09]} 3. c4 {[%clk 0:15:13]}  e6 {[%clk 0:15:12]} 4. g3 {[%clk 0:15:16]}  Be7 {[%clk 0:15:16]} 5. Bg2 {[%clk 0:15:19]}  O-O {[%clk 0:15:19]} 6. Nc3 {[%clk 0:15:22]}  Nbd7 {[%clk 0:15:14]} 7. Ne5 {[%clk 0:15:20]}  c6 {[%clk 0:15:17]} 8. O-O {[%clk 0:15:22]}  Nxe5 {[%clk 0:15:18]} 9. dxe5 {[%clk 0:15:25]}  Nd7 {[%clk 0:15:22]} 10. cxd5 {[%clk 0:15:28]}  exd5 {[%clk 0:15:25]} 11. f4 {[%clk 0:15:31]}  Bc5+ {[%clk 0:15:28]} 12. Kh1 {[%clk 0:15:31]}  a5 {[%clk 0:15:31]} 13. Qc2 {[%clk 0:14:50]}  Qe7 {[%clk 0:14:56]} 14. b3 {[%clk 0:14:12]}  f6 {[%clk 0:14:20]} 15. Bb2 {[%clk 0:13:32]}  fxe5 {[%clk 0:14:11]} 16. fxe5 {[%clk 0:13:34]}  Rxf1+ {[%clk 0:13:28]} 17. Rxf1 {[%clk 0:13:37]}  Nb6 {[%clk 0:13:09]} 18. e4 {[%clk 0:09:52]}  Be6 {[%clk 0:13:12]} 19. Ne2 {[%clk 0:09:30]}  Ba3 {[%clk 0:09:52]} 20. Bxa3 {[%clk 0:08:28]}  Qxa3 {[%clk 0:09:55]} 21. Nf4 {[%clk 0:08:31]}  Qe7 {[%clk 0:09:58]} 22. Qf2 {[%clk 0:08:35]}  d4 {[%clk 0:09:57]} 23. Nxe6 {[%clk 0:07:59]}  Qxe6 {[%clk 0:10:01]} 24. Bh3 {[%clk 0:08:03]}  Qe7 {[%clk 0:09:45]} 25. Qxd4 {[%clk 0:07:54]}  c5 {[%clk 0:09:31]} 26. Qd6 {[%clk 0:07:43]}  Qxd6 {[%clk 0:09:34]} 27. exd6 {[%clk 0:07:46]}  Re8 {[%clk 0:09:38]} 28. d7 {[%clk 0:07:18]}  Rd8 {[%clk 0:09:41]} 29. e5 {[%clk 0:06:33]} 1-0

[Event "Challengers Triathlon (GM2)"]
[Site "Biel, CH"]
[Date "2025.07.13"]
[Round "2"]
[White "Jumabayev, Rinat"]
[Black "Ma, Qun"]
[Result "1/2-1/2"]
[Board "2"]
[TimeControl "900+5"]
[WhiteFideId "13702661"]
[BlackFideId "8603154"]
[WhiteTitle "GM"]
[BlackTitle "GM"]
[WhiteElo "2546"]
[BlackElo "2617"]
[WhiteTeam "KAZ"]
[BlackTeam "CHN"]
[WhiteClock "0:00:18"]
[BlackClock "0:00:15"]
[Variant "Standard"]

1. Nf3 {[%clk 0:15:09]}  Nf6 {[%clk 0:15:08]} 2. g3 {[%clk 0:15:11]}  b5 {[%clk 0:15:12]} 3. Bg2 {[%clk 0:15:14]}  Bb7 {[%clk 0:15:16]} 4. Na3 {[%clk 0:15:12]}  a6 {[%clk 0:15:15]} 5. c4 {[%clk 0:15:04]}  e6 {[%clk 0:15:12]} 6. b3 {[%clk 0:15:05]}  d5 {[%clk 0:14:19]} 7. cxb5 {[%clk 0:14:43]}  Bxa3 {[%clk 0:13:52]} 8. Bxa3 {[%clk 0:14:46]}  axb5 {[%clk 0:13:57]} 9. Qc1 {[%clk 0:14:37]}  Na6 {[%clk 0:13:09]} 10. O-O {[%clk 0:11:52]}  b4 {[%clk 0:13:00]} 11. Bb2 {[%clk 0:11:56]}  O-O {[%clk 0:12:38]} 12. d4 {[%clk 0:11:07]}  Qe7 {[%clk 0:10:40]} 13. Qe3 {[%clk 0:10:51]}  Rfc8 {[%clk 0:10:29]} 14. Rfc1 {[%clk 0:10:55]}  Nb8 {[%clk 0:09:48]} 15. Ne5 {[%clk 0:10:52]}  Nbd7 {[%clk 0:09:46]} 16. Nd3 {[%clk 0:10:45]}  Ba6 {[%clk 0:09:17]} 17. Rc2 {[%clk 0:09:24]}  h6 {[%clk 0:08:15]} 18. Bc1 {[%clk 0:06:32]}  Bxd3 {[%clk 0:05:44]} 19. Qxd3 {[%clk 0:06:33]}  c5 {[%clk 0:05:42]} 20. Bd2 {[%clk 0:05:39]}  c4 {[%clk 0:03:48]} 21. bxc4 {[%clk 0:05:42]}  Ra3 {[%clk 0:03:52]} 22. cxd5 {[%clk 0:05:45]}  Rb8 {[%clk 0:03:53]} 23. d6 {[%clk 0:05:07]}  Qxd6 {[%clk 0:03:56]} 24. Bf4 {[%clk 0:05:06]}  Qf8 {[%clk 0:02:23]} 25. Qd1 {[%clk 0:04:51]}  Re8 {[%clk 0:01:17]} 26. Bc6 {[%clk 0:04:10]}  Rc8 {[%clk 0:01:06]} 27. Bxd7 {[%clk 0:02:21]}  Rxc2 {[%clk 0:01:10]} 28. Qxc2 {[%clk 0:02:26]}  Nxd7 {[%clk 0:01:14]} 29. Qc6 {[%clk 0:01:27]}  Qd8 {[%clk 0:00:19]} 30. Bd6 {[%clk 0:01:46]}  Nb8 {[%clk 0:00:12]} 31. Bxb8 {[%clk 0:00:16]}  Qxb8 {[%clk 0:00:16]} 32. Rc1 {[%clk 0:00:11]}  Rxa2 {[%clk 0:00:12]} 33. Qd7 {[%clk 0:00:14]}  Ra8 {[%clk 0:00:07]} 34. Rb1 {[%clk 0:00:09]}  Qb6 {[%clk 0:00:07]} 35. d5 {[%clk 0:00:07]}  exd5 {[%clk 0:00:07]} 36. Qxd5 {[%clk 0:00:11]}  Rb8 {[%clk 0:00:11]} 37. Rb3 {[%clk 0:00:15]}  Qc7 {[%clk 0:00:13]} 38. Kg2 {[%clk 0:00:13]}  Qb7 {[%clk 0:00:13]} 39. Qxb7 {[%clk 0:00:14]}  Rxb7 {[%clk 0:00:17]} 40. Kf3 {[%clk 0:00:18]}  Kh7 {[%clk 0:00:21]} 41. Ke4 {[%clk 0:00:23]}  Kg6 {[%clk 0:00:24]} 42. e3 {[%clk 0:00:08]}  Kg5 {[%clk 0:00:22]} 43. h3 {[%clk 0:00:11]}  h5 {[%clk 0:00:25]} 44. f4+ {[%clk 0:00:12]}  Kf6 {[%clk 0:00:29]} 45. g4 {[%clk 0:00:09]}  hxg4 {[%clk 0:00:20]} 46. hxg4 {[%clk 0:00:13]}  g5 {[%clk 0:00:21]} 47. Kd5 {[%clk 0:00:17]}  Rb8 {[%clk 0:00:09]} 48. Kc4 {[%clk 0:00:18]}  Re8 {[%clk 0:00:08]} 49. Kd4 {[%clk 0:00:15]}  Rb8 {[%clk 0:00:11]} 50. Kc4 {[%clk 0:00:18]}  Re8 {[%clk 0:00:15]} 1/2-1/2

[Event "Challengers Triathlon (GM2)"]
[Site "Biel, CH"]
[Date "2025.07.13"]
[Round "2"]
[White "Hakobyan, Aram"]
[Black "Dardha, Daniel"]
[Result "1-0"]
[Board "3"]
[TimeControl "900+5"]
[WhiteFideId "13306677"]
[BlackFideId "240990"]
[WhiteTitle "GM"]
[BlackTitle "GM"]
[WhiteElo "2535"]
[BlackElo "2580"]
[WhiteTeam "ARM"]
[BlackTeam "BEL"]
[WhiteClock "0:00:09"]
[BlackClock "0:00:09"]
[Variant "Standard"]

1. d4 {[%clk 0:15:07]}  d5 {[%clk 0:15:03]} 2. c4 {[%clk 0:15:11]}  dxc4 {[%clk 0:15:03]} 3. e4 {[%clk 0:15:15]}  e5 {[%clk 0:15:00]} 4. Nf3 {[%clk 0:15:17]}  exd4 {[%clk 0:15:01]} 5. Bxc4 {[%clk 0:15:18]}  Nc6 {[%clk 0:14:51]} 6. Qb3 {[%clk 0:15:16]}  Bb4+ {[%clk 0:14:38]} 7. Nbd2 {[%clk 0:15:03]}  Qe7 {[%clk 0:13:59]} 8. O-O {[%clk 0:13:15]}  Bxd2 {[%clk 0:12:16]} 9. Bxd2 {[%clk 0:13:14]}  Nf6 {[%clk 0:12:00]} 10. Rfe1 {[%clk 0:12:30]}  Nd7 {[%clk 0:10:16]} 11. Bd5 {[%clk 0:12:20]}  O-O {[%clk 0:09:03]} 12. Bxc6 {[%clk 0:11:12]}  bxc6 {[%clk 0:09:07]} 13. Nxd4 {[%clk 0:11:16]}  Ne5 {[%clk 0:07:51]} 14. Qg3 {[%clk 0:11:01]}  f6 {[%clk 0:07:46]} 15. Bc3 {[%clk 0:10:43]}  Qf7 {[%clk 0:07:11]} 16. f4 {[%clk 0:10:22]}  Nc4 {[%clk 0:07:09]} 17. Nxc6 {[%clk 0:07:27]}  Bb7 {[%clk 0:07:09]} 18. Nd4 {[%clk 0:07:31]}  Nd6 {[%clk 0:06:44]} 19. e5 {[%clk 0:05:12]}  fxe5 {[%clk 0:06:06]} 20. Rxe5 {[%clk 0:05:03]}  Qxf4 {[%clk 0:04:53]} 21. Qxf4 {[%clk 0:04:07]}  Rxf4 {[%clk 0:04:56]} 22. Re7 {[%clk 0:04:10]}  Rg4 {[%clk 0:02:56]} 23. g3 {[%clk 0:03:02]}  Rc8 {[%clk 0:02:19]} 24. Rf1 {[%clk 0:03:36]}  h5 {[%clk 0:01:20]} 25. Ne6 {[%clk 0:03:15]}  h4 {[%clk 0:01:08]} 26. Rf4 {[%clk 0:01:44]}  Rg6 {[%clk 0:01:12]} 27. Rxg7+ {[%clk 0:01:45]}  Rxg7 {[%clk 0:01:16]} 28. Nxg7 {[%clk 0:01:47]}  hxg3 {[%clk 0:01:18]} 29. hxg3 {[%clk 0:01:50]}  Ne4 {[%clk 0:00:46]} 30. Nf5 {[%clk 0:01:43]}  Nxc3 {[%clk 0:00:18]} 31. Ne7+ {[%clk 0:00:51]}  Kg7 {[%clk 0:00:22]} 32. Rg4+ {[%clk 0:00:44]}  Kf6 {[%clk 0:00:07]} 33. Nxc8 {[%clk 0:00:46]}  Ne2+ {[%clk 0:00:07]} 34. Kf2 {[%clk 0:00:47]}  Bxc8 {[%clk 0:00:09]} 35. Rc4 {[%clk 0:00:40]}  Be6 {[%clk 0:00:08]} 36. Rxc7 {[%clk 0:00:20]}  Nd4 {[%clk 0:00:12]} 37. Rxa7 {[%clk 0:00:21]}  Nc6 {[%clk 0:00:06]} 38. Ra4 {[%clk 0:00:14]}  Ne5 {[%clk 0:00:09]} 39. b3 {[%clk 0:00:11]}  Bf5 {[%clk 0:00:08]} 40. Ke3 {[%clk 0:00:12]}  Ke6 {[%clk 0:00:12]} 41. Ra6+ {[%clk 0:00:15]}  Ke7 {[%clk 0:00:07]} 42. Kf4 {[%clk 0:00:16]}  Bd3 {[%clk 0:00:10]} 43. Rb6 {[%clk 0:00:07]}  Nd7 {[%clk 0:00:13]} 44. Rb4 {[%clk 0:00:09]}  Bb1 {[%clk 0:00:12]} 45. a4 {[%clk 0:00:09]}  Nc5 {[%clk 0:00:16]} 46. Rb5 {[%clk 0:00:11]}  Kd6 {[%clk 0:00:19]} 47. a5 {[%clk 0:00:14]}  Bd3 {[%clk 0:00:07]} 48. Rb6+ {[%clk 0:00:18]}  Kd5 {[%clk 0:00:08]} 49. g4 {[%clk 0:00:11]}  Bc2 {[%clk 0:00:09]} 50. a6 {[%clk 0:00:09]} 1-0

[Event "Challengers Triathlon (GM2)"]
[Site "Biel, CH"]
[Date "2025.07.13"]
[Round "3"]
[White "Navara, David"]
[Black "Hakobyan, Aram"]
[Result "0-1"]
[Board "1"]
[TimeControl "900+5"]
[WhiteFideId "309095"]
[BlackFideId "13306677"]
[WhiteTitle "GM"]
[BlackTitle "GM"]
[WhiteElo "2621"]
[BlackElo "2535"]
[WhiteTeam "CZE"]
[BlackTeam "ARM"]
[WhiteClock "0:00:11"]
[BlackClock "0:00:06"]
[Variant "Standard"]

1. e4 {[%clk 0:15:09]}  e5 {[%clk 0:15:08]} 2. Nf3 {[%clk 0:15:13]}  Nc6 {[%clk 0:15:12]} 3. Bc4 {[%clk 0:15:16]}  Bc5 {[%clk 0:15:14]} 4. c3 {[%clk 0:15:19]}  Nf6 {[%clk 0:15:16]} 5. d3 {[%clk 0:15:23]}  d6 {[%clk 0:14:59]} 6. O-O {[%clk 0:15:13]}  a6 {[%clk 0:15:02]} 7. a4 {[%clk 0:15:16]}  Ba7 {[%clk 0:15:05]} 8. Re1 {[%clk 0:15:02]}  O-O {[%clk 0:15:04]} 9. h3 {[%clk 0:15:05]}  Re8 {[%clk 0:15:05]} 10. b4 {[%clk 0:14:32]}  Be6 {[%clk 0:15:06]} 11. Bxe6 {[%clk 0:14:23]}  Rxe6 {[%clk 0:15:06]} 12. Nbd2 {[%clk 0:14:10]}  d5 {[%clk 0:14:58]} 13. Bb2 {[%clk 0:13:00]}  Nh5 {[%clk 0:11:08]} 14. b5 {[%clk 0:12:15]}  Nf4 {[%clk 0:08:14]} 15. d4 {[%clk 0:08:15]}  Rg6 {[%clk 0:05:59]} 16. bxc6 {[%clk 0:08:10]}  Rxg2+ {[%clk 0:05:50]} 17. Kh1 {[%clk 0:08:13]}  Qc8 {[%clk 0:02:14]} 18. Ng1 {[%clk 0:08:16]}  Rxf2 {[%clk 0:02:12]} 19. Rf1 {[%clk 0:06:27]}  Nxh3 {[%clk 0:01:56]} 20. Qh5 {[%clk 0:06:06]}  Nf4 {[%clk 0:01:02]} 21. Qxe5 {[%clk 0:06:09]}  Nd3 {[%clk 0:00:32]} 22. Qh5 {[%clk 0:03:36]}  bxc6 {[%clk 0:00:23]} 23. Ngf3 {[%clk 0:02:20]}  Rxf1+ {[%clk 0:00:06]} 24. Rxf1 {[%clk 0:02:23]}  Nf4 {[%clk 0:00:07]} 25. Qh2 {[%clk 0:02:13]}  Ne6 {[%clk 0:00:10]} 26. Ne5 {[%clk 0:02:05]}  f6 {[%clk 0:00:11]} 27. Nxc6 {[%clk 0:02:05]}  Qb7 {[%clk 0:00:09]} 28. exd5 {[%clk 0:01:57]}  Ng5 {[%clk 0:00:08]} 29. Ba3 {[%clk 0:01:22]}  Re8 {[%clk 0:00:10]} 30. Qh5 {[%clk 0:01:03]}  Qa8 {[%clk 0:00:06]} 31. Nc4 {[%clk 0:00:19]}  Ne4 {[%clk 0:00:09]} 32. Qf3 {[%clk 0:00:13]}  Ng5 {[%clk 0:00:08]} 33. Qg3 {[%clk 0:00:11]}  Qc8 {[%clk 0:00:08]} 34. Nxa7 {[%clk 0:00:06]}  Qd7 {[%clk 0:00:12]} 35. Qg2 {[%clk 0:00:07]}  Re4 {[%clk 0:00:15]} 36. Qxg5 {[%clk 0:00:06]}  Qh3+ {[%clk 0:00:16]} 37. Kg1 {[%clk 0:00:11]}  Re2 {[%clk 0:00:06]} 0-1